bitfinex/quotes_BTCUSD_20241111
["timestamp","ask_amount","ask_price","bid_price","bid_amount"]
[1731357592324,0.11994075,86910.0,86886.0,0.17225738]
[1731357592923,0.11994075,86910.0,86896.0,0.17225738]
[1731357593120,0.11994075,86910.0,86886.0,0.17225738]
[1731357593498,0.11994075,86910.0,86880.0,0.1]
[1731357593720,0.11994075,86910.0,86888.0,0.17225738]
[1731357594463,0.023,86909.0,86888.0,0.17225738]
[1731357594696,0.11994075,86908.0,86889.0,0.17225738]
[1731357595656,0.14180483,86908.0,86889.0,0.17225738]
[1731357595907,0.11994075,86908.0,86889.0,0.17225738]
[1731357596697,0.023,86907.0,86880.0,0.005]
[1731357596890,0.11994075,86908.0,86880.0,0.005]
[1731357596891,0.023,86905.0,86889.0,0.17225738]
[1731357597113,0.11994075,86904.0,86889.0,0.17225738]
[1731357597529,0.11994075,86904.0,86898.0,0.17225738]
[1731357597786,0.11994075,86904.0,86889.0,0.17225738]
[1731357598133,0.15659384,86904.0,86889.0,0.17225738]
[1731357598456,0.01565938,86903.0,86889.0,0.17225738]
[1731357598608,0.11994075,86902.0,86889.0,0.17225738]
[1731357598808,0.11994075,86902.0,86879.0,0.17725738]
[1731357598809,0.023,86901.0,86880.0,0.105]
[1731357599006,0.023,86899.0,86879.0,0.17225738]
[1731357599211,0.11994075,86898.0,86879.0,0.17225738]
[1731357599455,0.023,86897.0,86879.0,0.17225738]
[1731357599629,0.023,86895.0,86879.0,0.17225738]
[1731357599834,0.11994075,86894.0,86879.0,0.17225738]
[1731357600243,1.61359588,86911.0,86879.0,0.17225738]
[1731357600244,0.11359588,86911.0,86889.0,0.17225738]
[1731357600487,0.11359588,86911.0,86886.0,0.005]
[1731357600488,0.17225738,86900.0,86886.0,0.005]
[1731357600676,0.11994075,86910.0,86886.0,0.005]
[1731357600906,0.19569625,86909.0,86886.0,0.005]
[1731357601040,0.11994075,86908.0,86882.0,0.1]
[1731357601248,0.11994075,86908.0,86890.0,0.17225738]
[1731357601865,0.03789588,86911.0,86900.0,0.17225738]
[1731357602066,0.17225738,86927.0,86913.0,0.005]
[1731357602270,0.17225738,86939.0,86901.0,0.40712725]
[1731357602271,0.17225738,86926.0,86915.0,0.005]
[1731357602676,0.20957491,86939.0,86915.0,0.005]
[1731357602882,0.11994075,86938.0,86915.0,0.005]
[1731357603252,0.11994075,86938.0,86910.0,0.27225738]
[1731357603426,0.11994075,86938.0,86919.0,0.17225738]
[1731357603686,0.29219813,86938.0,86910.0,0.27225738]
[1731357603910,0.11994075,86938.0,86910.0,0.17225738]
[1731357604084,0.11994075,86938.0,86919.0,0.17225738]
[1731357604295,0.11994075,86938.0,86928.0,0.17225738]
[1731357604510,0.03731753,86939.0,86926.0,0.005]
[1731357604735,0.25325738,86953.0,86920.0,0.13850229]
[1731357604736,0.11994075,86938.0,86922.0,0.03350229]
[1731357604969,0.11994075,86938.0,86921.0,0.17225738]
[1731357605156,0.11994075,86935.0,86917.0,0.03350229]
[1731357605376,0.11994075,86935.0,86910.0,0.25601312]
[1731357605377,0.081,86932.0,86919.0,0.17225738]
[1731357605606,0.11994075,86931.0,86919.0,0.17225738]
[1731357605808,0.11994075,86931.0,86911.0,0.03350229]
[1731357605947,0.11994075,86931.0,86910.0,0.17225738]
[1731357605948,0.023,86930.0,86910.0,0.17225738]
[1731357606186,0.023,86930.0,86900.0,0.25601312]
[1731357606187,0.1702,86912.0,86875.0,0.08375574]
[1731357606382,0.1702,86912.0,86855.0,0.005]
[1731357606383,0.123,86910.0,86900.0,0.69028992]
[1731357606592,0.002,86913.0,86861.0,0.005]
[1731357606593,0.123,86900.0,86861.0,0.005]
[1731357606812,0.123,86900.0,86855.0,0.005]
[1731357606813,0.0472,86897.0,86851.0,0.0010521]
[1731357607037,0.023,86896.0,86851.0,0.0010521]
[1731357607450,0.025,86896.0,86851.0,0.0010521]
[1731357607625,0.023,86896.0,86851.0,0.0010521]
[1731357608065,0.023,86896.0,86857.0,0.30712725]
[1731357608435,0.023,86896.0,86851.0,0.0010521]
[1731357608436,0.69028992,86883.0,86851.0,0.0010521]
[1731357608818,0.11994075,86882.0,86872.0,0.0008524]
[1731357610427,0.03805669,86882.0,86872.0,0.0008524]
[1731357610635,0.69028992,86890.0,86872.0,0.0008524]
[1731357610979,0.69028992,86881.0,86872.0,0.0008524]
[1731357611192,0.11994075,86880.0,86872.0,0.0008524]
[1731357611408,0.17265988,86879.0,86872.0,0.0008524]
[1731357611603,0.11994075,86878.0,86872.0,0.0008524]
[1731357612235,0.11994075,86878.0,86872.0,0.00073485]
[1731357612568,0.023,86877.0,86872.0,0.00073485]
[1731357612794,0.11994075,86876.0,86872.0,0.00073485]
[1731357613553,0.13423483,86876.0,86872.0,0.00073485]
[1731357613776,0.11994075,86876.0,86872.0,0.00073485]
[1731357615460,0.17265988,86874.0,86872.0,0.00073485]
[1731357615720,0.03825042,86878.0,86872.0,0.00073485]
[1731357615721,0.11994075,86873.0,86872.0,0.00073485]
[1731357616218,0.11994075,86873.0,86872.0,0.00912414]
[1731357616366,0.17936617,86873.0,86872.0,0.00912414]
[1731357616573,0.17936617,86873.0,86872.0,0.00073485]
[1731357617416,0.15636617,86873.0,86872.0,0.00073485]
[1731357618994,0.03642542,86873.0,86872.0,0.00073485]
[1731357619409,0.023,86888.0,86872.0,0.0091215]
[1731357619643,0.17265988,86880.0,86872.0,0.0091215]
[1731357619845,0.03683896,86889.0,86872.0,0.0091215]
[1731357620035,0.03683896,86889.0,86880.0,0.005]
[1731357620036,0.17265988,86888.0,86880.0,0.005]
[1731357620223,0.11994075,86887.0,86881.0,0.00838665]
[1731357620431,0.11994075,86887.0,86882.0,0.00838665]
[1731357620639,0.14920081,86887.0,86883.0,0.00838665]
[1731357620848,0.20003365,86900.0,86874.0,0.00838665]
[1731357621182,0.29260063,86899.0,86880.0,0.005]
[1731357621376,0.29260063,86899.0,86881.0,0.00838665]
[1731357621579,0.11994075,86899.0,86884.0,0.005]
[1731357621793,0.17265988,86898.0,86884.0,0.03869348]
[1731357622012,0.17265988,86898.0,86885.0,0.00838665]
[1731357622013,0.11994075,86897.0,86885.0,0.00838665]
[1731357622236,0.11994075,86898.0,86886.0,0.04207764]
[1731357622437,0.03717867,86900.0,86887.0,0.03369099]
[1731357622664,0.17265988,86899.0,86887.0,0.03369099]
[1731357622813,0.17265988,86899.0,86887.0,0.0083851]
[1731357623044,0.11994075,86900.0,86887.0,0.0083851]
[1731357623379,0.11994075,86900.0,86889.0,0.03369099]
[1731357623606,0.20003365,86922.0,86894.0,0.03369099]
[1731357623607,0.17265988,86899.0,86894.0,0.03369099]
[1731357623827,0.20003365,86922.0,86894.0,0.03369099]
[1731357623828,0.03793651,86900.0,86894.0,0.03369099]
[1731357624039,0.17265988,86902.0,86895.0,0.03369099]
[1731357624225,0.17265988,86902.0,86894.0,0.03369099]
[1731357624461,0.11994075,86910.0,86893.0,0.03369099]
[1731357624669,0.03678296,86902.0,86896.0,0.03369099]
[1731357624884,0.11994075,86910.0,86895.0,0.03369099]
[1731357625145,0.11994075,86910.0,86893.0,0.005]
[1731357625405,0.15746288,86910.0,86897.0,0.005]
[1731357625595,0.0822,86924.0,86897.0,0.005]
[1731357625742,0.0822,86924.0,86889.0,0.1]
[1731357625743,0.17265988,86914.0,86896.0,0.005]
[1731357625948,0.17265988,86914.0,86897.0,0.005]
[1731357626704,0.20003365,86930.0,86897.0,0.005]
[1731357626705,0.0817,86938.0,86917.0,0.005]
[1731357626934,0.17265988,86925.0,86917.0,0.005]
[1731357627158,0.17265988,86925.0,86904.0,0.1]
[1731357627159,0.11994075,86924.0,86914.0,0.005]
[1731357627375,0.11994075,86924.0,86913.0,0.005]
[1731357627595,0.11994075,86924.0,86898.0,0.04540881]
[1731357627797,0.11994075,86924.0,86897.0,0.16544075]
[1731357628536,0.17265988,86923.0,86904.0,0.20003365]
[1731357629167,0.03903713,86926.0,86904.0,0.3199744]
[1731357629589,0.03903713,86926.0,86913.0,0.20003365]
[1731357629795,0.03903713,86926.0,86914.0,0.1]
[1731357629991,0.03903713,86926.0,86915.0,0.20003365]
[1731357630669,0.03903713,86926.0,86914.0,0.1]
[1731357630907,0.03903713,86926.0,86906.0,0.1]
[1731357631122,0.03903713,86926.0,86916.0,0.1]
[1731357631325,0.03903713,86926.0,86915.0,0.20003365]
[1731357631326,0.03903713,86926.0,86925.0,0.30003365]
[1731357631812,0.03903713,86926.0,86925.0,0.10556253]
[1731357632029,0.03903713,86926.0,86925.0,0.00556253]
[1731357632473,0.03903713,86926.0,86908.0,0.1]
[1731357632690,0.03403713,86926.0,86908.0,0.21994075]
[1731357632911,0.03403713,86926.0,86907.0,0.20003365]
[1731357632912,0.005,86944.0,86925.0,0.17265988]
[1731357633082,0.17265988,86939.0,86912.0,0.1]
[1731357633285,0.11994075,86939.0,86926.0,0.00058899]
[1731357633490,0.005,86949.0,86938.0,0.0003462]
[1731357633705,0.0772,86940.0,86938.0,0.0003462]
[1731357633852,0.023,86939.0,86901.0,0.0824]
[1731357634057,0.023,86939.0,86933.0,0.17265988]
[1731357634266,0.023,86939.0,86902.0,0.00509734]
[1731357634267,0.11994075,86938.0,86902.0,0.00509734]
[1731357634465,0.023,86937.0,86926.0,0.17265988]
[1731357634698,0.17265988,86949.0,86921.0,0.20003365]
[1731357635029,0.17265988,86948.0,86930.0,0.20003365]
[1731357635396,0.15709578,86952.0,86936.0,0.17265988]
[1731357635619,0.15709578,86952.0,86931.0,0.00444188]
[1731357635620,0.03715503,86952.0,86939.0,0.1]
[1731357635825,1.5,86963.0,86944.0,0.1]
[1731357636615,0.20929644,86968.0,86944.0,0.1]
[1731357636862,0.11994075,86967.0,86945.0,0.00058541]
[1731357637035,1.61994075,86967.0,86947.0,0.17265988]
[1731357637442,1.61994075,86967.0,86948.0,0.1]
[1731357637443,1.5,86967.0,86948.0,0.1]
[1731357637793,0.03663656,86968.0,86949.0,0.00058509]
[1731357638008,0.0454,86974.0,86949.0,0.00058509]
[1731357638204,1.61994075,86973.0,86949.0,0.00058509]
[1731357638409,1.61994075,86973.0,86948.0,0.1]
[1731357638613,1.61994075,86973.0,86947.0,0.17265988]
[1731357638985,1.61994075,86973.0,86957.0,0.17265988]
[1731357639189,0.17265988,86972.0,86952.0,0.17265988]
[1731357639412,0.11994075,86971.0,86952.0,0.17265988]
[1731357639589,0.11994075,86971.0,86953.0,0.00513069]
[1731357639831,1.5,86970.0,86953.0,0.00513069]
[1731357640036,0.11994075,86969.0,86953.0,0.00513069]
[1731357640249,0.11994075,86969.0,86952.0,0.17265988]
[1731357640670,0.0371724,86974.0,86923.0,0.03823223]
[1731357640671,0.0371724,86974.0,86967.0,0.1]
[1731357640875,0.17265988,86973.0,86969.0,0.1]
[1731357641001,0.17265988,86984.0,86969.0,0.1]
[1731357641390,0.03762077,86985.0,86970.0,0.17265988]
[1731357641606,0.03762077,86985.0,86975.0,0.17265988]
[1731357641818,0.03762077,86985.0,86984.0,0.30634231]
[1731357642070,0.0008514,86985.0,86984.0,0.21994075]
[1731357642291,0.0008514,86985.0,86984.0,0.5292906]
[1731357642498,0.0008514,86985.0,86984.0,0.52699168]
[1731357642665,0.0008514,86985.0,86984.0,0.53199168]
[1731357643347,0.0008527,87003.0,86985.0,0.1]
[1731357643563,0.0008527,87003.0,86985.0,0.21994075]
[1731357644006,0.0008527,87003.0,86985.0,0.22064779]
[1731357644234,0.0008527,87003.0,86985.0,0.10070704]
[1731357644450,0.0008527,87003.0,86985.0,0.00018816]
[1731357644869,0.0008527,87003.0,86971.0,0.1]
[1731357645077,0.0008527,87003.0,86981.0,0.1]
[1731357645434,0.0008527,87003.0,86982.0,0.00716877]
[1731357645641,0.0008527,87003.0,86983.0,0.00716877]
[1731357645818,0.0008527,87003.0,86984.0,0.00716877]
[1731357645819,0.0764,87002.0,86984.0,0.00716877]
[1731357646021,0.0764,87002.0,86985.0,0.00716877]
[1731357646502,0.0764,87002.0,86985.0,0.01122474]
[1731357647130,0.0008527,87003.0,86985.0,0.01122474]
[1731357647340,0.03981901,86986.0,86985.0,0.01122474]
[1731357647550,0.03981901,86986.0,86962.0,0.005]
[1731357647551,0.005,86978.0,86937.0,0.105]
[1731357647757,0.005,86978.0,86977.0,0.17265988]
[1731357647978,0.005,86973.0,86938.0,0.11994075]
[1731357648204,0.005,86971.0,86961.0,0.17265988]
[1731357648416,0.005,86971.0,86938.0,0.11994075]
[1731357648417,0.005,86953.0,86938.0,0.11994075]
[1731357648626,0.005,86953.0,86952.0,0.17265988]
[1731357648828,0.682,86987.0,86936.0,0.07364324]
[1731357648829,0.17265988,86969.0,86939.0,0.12224116]
[1731357649137,0.17265988,86967.0,86952.0,0.00326412]
[1731357649365,0.005,86971.0,86952.0,0.00326412]
[1731357649568,0.03759081,86970.0,86952.0,0.00326412]
[1731357649771,0.005,86971.0,86954.0,0.1]
[1731357650158,0.03736047,86971.0,86955.0,0.17595775]
[1731357650352,0.005,86971.0,86955.0,0.17595775]
[1731357651012,0.005,86971.0,86956.0,0.17265988]
[1731357651354,0.005,86960.0,86955.0,0.00329787]
[1731357651554,0.005,86960.0,86917.0,0.0476]
[1731357651555,0.0843,86958.0,86957.0,0.0032992]
[1731357651764,0.0843,86958.0,86896.0,0.30834231]
[1731357651765,0.005,86946.0,86914.0,0.0826]
[1731357651937,0.005,86951.0,86945.0,0.16610549]
[1731357652140,0.19924075,86958.0,86915.0,0.11994075]
[1731357652141,0.005,86946.0,86915.0,0.11994075]
[1731357652346,0.005,86946.0,86932.0,0.17265988]
[1731357652492,0.005,86946.0,86916.0,0.00230052]
[1731357652690,0.005,86946.0,86915.0,0.11994075]
[1731357652691,0.005,86946.0,86928.0,0.17265988]
[1731357652892,0.11994075,86946.0,86918.0,0.1]
[1731357653093,0.17023666,86949.0,86928.0,0.17265988]
[1731357653094,0.0467,86944.0,86928.0,0.17265988]
[1731357653387,0.11994075,86943.0,86928.0,0.17265988]
[1731357654370,0.0467,86944.0,86931.0,0.17265988]
[1731357654582,0.0467,86944.0,86912.0,0.00315204]
[1731357654795,0.0311,86944.0,86929.0,0.17265988]
[1731357655031,0.0311,86944.0,86912.0,0.00315204]
[1731357655032,1.5,86950.0,86930.0,0.21994075]
[1731357655236,0.03804998,86951.0,86930.0,0.21994075]
[1731357655237,0.03804998,86951.0,86931.0,0.17265988]
[1731357655487,0.03804998,86951.0,86932.0,0.22224108]
[1731357655687,0.17265988,86960.0,86932.0,0.22224108]
[1731357655688,0.03709211,86958.0,86932.0,0.22224108]
[1731357655903,0.0017026,86946.0,86932.0,0.22224108]
[1731357656316,0.0017026,86946.0,86932.0,0.21994075]
[1731357656557,0.0017026,86946.0,86941.0,0.1]
[1731357656722,0.0017026,86946.0,86942.0,0.12224088]
[1731357656924,0.0017026,86946.0,86943.0,0.1]
[1731357657126,0.0017026,86946.0,86945.0,0.1]
[1731357657337,0.0017026,86946.0,86945.0,0.21994075]
[1731357657495,0.03744619,86960.0,86946.0,0.1]
[1731357657695,0.17265988,86958.0,86946.0,0.1]
[1731357657894,0.0475,86978.0,86946.0,0.1]
[1731357658123,0.11994075,86972.0,86946.0,0.1]
[1731357658319,0.11994075,86972.0,86950.0,0.1]
[1731357658531,0.11994075,86972.0,86931.0,0.005]
[1731357658532,0.19952282,86971.0,86931.0,0.005]
[1731357658774,0.11994075,86970.0,86947.0,0.1]
[1731357658974,0.19952282,86961.0,86941.0,0.1]
[1731357659327,0.19952282,86961.0,86948.0,0.003007]
[1731357659328,0.0824,86959.0,86948.0,0.003007]
[1731357659516,0.0824,86959.0,86904.0,0.01]
[1731357659517,0.19952282,86950.0,86913.0,0.005]
[1731357659729,1.5454,86958.0,86908.0,0.005]
[1731357659936,1.5454,86958.0,86913.0,0.005]
[1731357660112,0.0454,86958.0,86918.0,0.005]
[1731357660331,0.21805988,86958.0,86929.0,0.17265988]
[1731357660578,0.17265988,86949.0,86930.0,0.11994075]
[1731357660756,1.5,86957.0,86930.0,0.11994075]
[1731357661170,0.254822,86958.0,86930.0,0.11994075]
[1731357661454,0.254822,86958.0,86931.0,0.1]
[1731357661699,0.254822,86958.0,86930.0,0.11994075]
[1731357661700,0.254822,86958.0,86932.0,0.11994075]
[1731357661920,0.254822,86958.0,86942.0,0.17265988]
[1731357661921,0.08216212,86958.0,86942.0,0.17265988]
[1731357662122,0.03676212,86958.0,86943.0,0.21994075]
[1731357662460,0.17265988,86975.0,86953.0,0.1]
[1731357662672,0.17265988,86964.0,86953.0,0.1]
[1731357662850,0.11994075,86974.0,86953.0,0.1]
[1731357663074,0.11994075,86974.0,86954.0,0.17265988]
[1731357663285,0.11994075,86974.0,86955.0,0.1]
[1731357664549,0.11994075,86974.0,86928.0,0.002]
[1731357664550,0.01199408,86973.0,86935.0,0.005]
[1731357664768,0.11994075,86972.0,86956.0,0.17265988]
[1731357664961,0.11994075,86972.0,86945.0,0.1]
[1731357665351,0.11994075,86972.0,86950.0,0.1]
[1731357665560,0.0499,86967.0,86921.0,0.0812]
[1731357665737,0.19584075,86966.0,86960.0,0.17265988]
[1731357665957,0.19584075,86966.0,86925.0,0.005]
[1731357665958,0.17265988,86965.0,86925.0,0.005]
[1731357666202,0.11994075,86964.0,86952.0,0.17265988]
[1731357666423,0.11994075,86964.0,86926.0,0.11994075]
[1731357666661,0.14451483,86964.0,86944.0,0.17265988]
[1731357666920,0.11994075,86964.0,86944.0,0.17265988]
[1731357667132,0.11994075,86964.0,86945.0,0.17265988]
[1731357667786,0.11994075,86964.0,86936.0,0.0017024]
[1731357667991,0.0759,86966.0,86946.0,0.17265988]
[1731357667992,0.023,86952.0,86946.0,0.17265988]
[1731357668144,0.11994075,86951.0,86946.0,0.17265988]
[1731357668575,0.11994075,86951.0,86936.0,0.0017024]
[1731357668731,0.0489,86950.0,86937.0,0.17265988]
[1731357668941,0.11994075,86949.0,86937.0,0.17265988]
[1731357671014,0.11994075,86949.0,86936.0,0.0017024]
[1731357671239,0.023,86938.0,86936.0,0.0017024]
[1731357671452,0.023,86938.0,86895.0,0.08328968]
[1731357671453,0.005,86932.0,86891.0,0.03353337]
[1731357671681,0.005,86932.0,86886.0,0.06706674]
[1731357671682,0.023,86925.0,86886.0,0.005]
[1731357672149,0.04602663,86925.0,86896.0,0.03353337]
[1731357672356,0.110472,86937.0,86902.0,0.03353337]
[1731357672554,0.110472,86937.0,86904.0,0.03353337]
[1731357672783,0.19952282,86936.0,86900.0,0.03353337]
[1731357673006,0.11994075,86935.0,86899.0,0.03353337]
[1731357673244,0.14614673,86935.0,86899.0,0.03353337]
[1731357673467,0.14614673,86935.0,86894.0,0.005]
[1731357673468,0.14614673,86935.0,86900.0,0.03353337]
[1731357673668,0.11994075,86935.0,86900.0,0.03353337]
[1731357673952,0.11994075,86935.0,86891.0,0.13263342]
[1731357673953,0.3721827,86925.0,86891.0,0.03353337]
[1731357674104,0.11994075,86924.0,86888.0,0.00768467]
[1731357674311,0.11994075,86924.0,86888.0,0.11994075]
[1731357674535,0.11994075,86924.0,86889.0,0.12224237]
[1731357674706,0.18465396,86923.0,86889.0,0.11994075]
[1731357674908,0.17265988,86921.0,86890.0,0.00230145]
[1731357675109,0.17265988,86921.0,86888.0,0.20452282]
[1731357675110,0.11994075,86920.0,86892.0,0.1]
[1731357675945,0.17265988,86921.0,86894.0,0.1]
[1731357676178,0.17265988,86921.0,86894.0,0.21994075]
[1731357677050,0.17265988,86921.0,86890.0,0.05028416]
[1731357677051,0.17265988,86921.0,86896.0,0.1]
[1731357677474,0.17265988,86921.0,86897.0,0.01147967]
[1731357677721,0.04771927,86924.0,86898.0,0.11994075]
[1731357677944,0.17265988,86923.0,86899.0,0.1]
[1731357678164,0.17265988,86923.0,86899.0,0.15028416]
[1731357678378,0.17265988,86923.0,86899.0,0.1]
[1731357678756,0.17265988,86936.0,86901.0,0.1]
[1731357678961,0.17265988,86936.0,86913.0,0.005]
[1731357678962,0.04556972,86936.0,86913.0,0.005]
[1731357679166,0.22075988,86950.0,86915.0,0.1]
[1731357679167,0.17265988,86935.0,86915.0,0.1]
[1731357679383,0.30305988,86950.0,86915.0,0.1]
[1731357679384,0.35074651,86950.0,86915.0,0.27022491]
[1731357679607,0.17265988,86936.0,86916.0,0.05028416]
[1731357679813,0.11994075,86949.0,86916.0,0.05028416]
[1731357680027,0.17265988,86940.0,86915.0,0.21994075]
[1731357680239,0.16700948,86949.0,86915.0,0.21994075]
[1731357680439,0.16700948,86949.0,86907.0,0.19952282]
[1731357680440,0.023,86929.0,86907.0,0.05028416]
[1731357680657,0.023,86924.0,86898.0,0.05028416]
[1731357680876,0.023,86924.0,86886.0,0.0794]
[1731357681097,0.11994075,86923.0,86884.0,0.05028416]
[1731357681303,0.11994075,86923.0,86875.0,0.0794]
[1731357681304,0.023,86922.0,86879.0,0.005]
[1731357681451,0.19952282,86915.0,86877.0,0.05028416]
[1731357681799,0.023,86912.0,86873.0,0.005]
[1731357682017,0.023,86910.0,86873.0,0.005]
[1731357682177,0.023,86908.0,86873.0,0.005]
[1731357682393,0.023,86906.0,86865.0,0.00230204]
[1731357682606,0.023,86904.0,86865.0,0.00230204]
[1731357682837,0.023,86906.0,86864.0,0.05528416]
[1731357682838,0.11994075,86903.0,86864.0,0.05528416]
[1731357683046,0.11994075,86903.0,86860.0,0.0758]
[1731357683047,0.023,86902.0,86865.0,0.005]
[1731357683168,0.11994075,86901.0,86865.0,0.005]
[1731357684449,0.11994075,86901.0,86875.0,0.1]
[1731357684690,0.11994075,86901.0,86866.0,0.00230214]
[1731357684898,0.1269,86913.0,86873.0,0.00230214]
[1731357685138,0.11994075,86913.0,86879.0,0.0479]
[1731357685348,0.083,86924.0,86886.0,0.0823]
[1731357685573,0.083,86924.0,86887.0,0.00230158]
[1731357685574,0.11994075,86923.0,86887.0,0.00230158]
[1731357685793,0.17265988,86927.0,86900.0,0.1]
[1731357686057,0.04569655,86924.0,86900.0,0.1]
[1731357686275,0.17265988,86926.0,86900.0,0.1]
[1731357686485,0.0455,86943.0,86899.0,0.12079185]
[1731357686486,0.04735672,86927.0,86903.0,0.1]
[1731357686683,0.17265988,86925.0,86904.0,0.11994075]
[1731357686882,0.17265988,86925.0,86905.0,0.1]
[1731357687141,0.17265988,86925.0,86907.0,0.1]
[1731357687342,0.17265988,86925.0,86908.0,0.11994075]
[1731357687512,0.11994075,86938.0,86909.0,0.1]
[1731357687750,0.11994075,86938.0,86910.0,0.11994075]
[1731357687751,0.17265988,86929.0,86910.0,0.11994075]
[1731357687875,0.0455,86943.0,86911.0,0.1]
[1731357688082,0.25736208,86950.0,86910.0,0.31946357]
[1731357688083,0.17265988,86938.0,86913.0,0.1]
[1731357688288,0.17265988,86938.0,86914.0,0.11994075]
[1731357688487,0.17265988,86938.0,86915.0,0.1]
[1731357688713,0.17265988,86938.0,86915.0,0.21994075]
[1731357689578,0.17265988,86938.0,86915.0,0.22019075]
[1731357690182,0.25736208,86950.0,86931.0,0.1]
[1731357690183,0.04630054,86943.0,86931.0,0.1]
[1731357690397,0.04630054,86943.0,86930.0,0.19952282]
[1731357690398,0.17265988,86942.0,86933.0,0.1]
[1731357690603,0.0017022,86950.0,86935.0,0.105]
[1731357690768,0.0017022,86950.0,86942.0,0.1]
[1731357690769,0.0483291,86950.0,86942.0,0.1]
[1731357691134,0.0017022,86950.0,86942.0,0.1]
[1731357692077,0.0017022,86950.0,86937.0,0.1]
[1731357692300,0.0017022,86950.0,86938.0,0.11994075]
[1731357692504,0.0017022,86950.0,86939.0,0.1]
[1731357692713,0.0017022,86950.0,86940.0,0.11994075]
[1731357692870,0.0017022,86950.0,86941.0,0.1]
[1731357693071,0.0017022,86950.0,86942.0,0.1]
[1731357693733,0.0017022,86950.0,86944.0,0.1]
[1731357693948,0.0017022,86950.0,86946.0,0.1]
[1731357694069,0.0017022,86950.0,86948.0,0.1]
[1731357694269,0.0017022,86950.0,86949.0,0.22224066]
[1731357694671,0.0017022,86950.0,86949.0,0.51356341]
[1731357694879,0.0017022,86950.0,86949.0,0.5112635]
[1731357695273,0.0017022,86950.0,86949.0,0.56145099]
[1731357695520,0.0017022,86950.0,86949.0,0.36192817]
[1731357695743,0.0017022,86950.0,86949.0,0.3113004]
[1731357696429,0.0017022,86950.0,86949.0,0.31129443]
[1731357696659,0.0017022,86950.0,86949.0,0.27153474]
[1731357696875,0.0017022,86950.0,86949.0,0.21363474]
[1731357697097,0.0017022,86950.0,86940.0,0.03845368]
[1731357697320,0.0017022,86950.0,86949.0,0.11994075]
[1731357697530,0.17265988,86969.0,86936.0,0.28152282]
[1731357697531,0.17265988,86959.0,86944.0,0.03345368]
[1731357697735,0.17265988,86959.0,86945.0,0.11994075]
[1731357697925,0.17265988,86959.0,86936.0,0.13218749]
[1731357697926,0.15028271,86969.0,86938.0,0.03345368]
[1731357698159,0.15028271,86969.0,86940.0,0.1]
[1731357698160,0.27022346,86969.0,86940.0,0.1]
[1731357698348,0.27022346,86969.0,86942.0,0.1]
[1731357699591,0.19952282,86965.0,86942.0,0.1]
[1731357699802,0.11994075,86969.0,86942.0,0.1]
[1731357700004,0.17265988,86968.0,86967.0,0.00025562]
[1731357700226,0.17265988,86968.0,86942.0,0.1]
[1731357700434,0.11994075,86969.0,86965.0,0.00025208]
[1731357700785,0.11994075,86969.0,86966.0,0.00025208]
[1731357701453,0.11994075,86969.0,86968.0,0.00025208]
[1731357701968,0.19244075,86969.0,86962.0,0.00025208]
[1731357702302,0.19244075,86969.0,86954.0,0.00025208]
[1731357702303,0.22514075,86964.0,86954.0,0.00025208]
[1731357702537,0.22514075,86964.0,86950.0,0.00025208]
[1731357702740,0.023,86957.0,86950.0,0.00025208]
[1731357702972,0.023,86955.0,86950.0,0.00025208]
[1731357703162,0.023,86953.0,86950.0,0.00025208]
[1731357703400,0.023,86953.0,86916.0,0.1557036]
[1731357703401,0.023,86951.0,86943.0,0.00025208]
[1731357703614,0.11994075,86950.0,86942.0,0.00025091]
[1731357704265,0.11994075,86950.0,86918.0,0.00230078]
[1731357704266,0.11994075,86950.0,86941.0,0.00025091]
[1731357704481,0.11994075,86950.0,86943.0,0.00025091]
[1731357704680,0.11994075,86950.0,86920.0,0.1]
[1731357705157,1.5,86958.0,86921.0,0.11994075]
[1731357705388,0.17265988,86946.0,86922.0,0.1]
[1731357705585,0.023,86955.0,86922.0,0.1]
[1731357705737,0.17265988,86948.0,86922.0,0.1]
[1731357705933,0.11994075,86947.0,86922.0,0.1]
[1731357706136,0.11994075,86947.0,86917.0,0.00230085]
[1731357706137,0.11994075,86947.0,86921.0,0.0334871]
[1731357706569,0.11994075,86947.0,86917.0,0.03578795]
[1731357706733,0.11994075,86947.0,86918.0,0.1]
[1731357707128,0.17265988,86946.0,86918.0,0.1]
[1731357707397,0.19952282,86956.0,86920.0,0.1334871]
[1731357707398,0.023,86956.0,86920.0,0.1334871]
[1731357707602,0.17265988,86947.0,86923.0,0.0334871]
[1731357707805,0.17265988,86947.0,86921.0,0.1334871]
[1731357707806,0.29260063,86947.0,86921.0,0.1334871]
[1731357708004,0.29260063,86947.0,86921.0,0.1]
[1731357708743,0.29260063,86947.0,86920.0,0.0334871]
[1731357708744,0.29260063,86947.0,86920.0,0.1334871]
[1731357708981,0.29260063,86947.0,86921.0,0.0334871]
[1731357709447,0.19952282,86936.0,86917.0,0.0334871]
[1731357709655,0.11994075,86935.0,86905.0,0.0334871]
[1731357709829,0.19952282,86925.0,86901.0,0.0334871]
[1731357710034,0.11994075,86924.0,86896.0,0.0334871]
[1731357710249,0.023,86933.0,86892.0,0.0669742]
[1731357710250,1.5,86932.0,86900.0,0.00230143]
[1731357710452,1.5,86932.0,86902.0,0.0334871]
[1731357710453,1.61994075,86932.0,86902.0,0.0334871]
[1731357710622,1.61994075,86932.0,86903.0,0.00230118]
[1731357710837,0.17265988,86931.0,86905.0,0.0334871]
[1731357711044,0.11994075,86930.0,86903.0,0.0334871]
[1731357711223,0.11994075,86930.0,86902.0,0.0334871]
[1731357712104,0.11994075,86930.0,86901.0,0.0334871]
[1731357712700,0.11994075,86930.0,86901.0,0.03578837]
[1731357713083,0.04595119,86935.0,86915.0,0.10025]
[1731357713292,0.17265988,86934.0,86915.0,0.00025]
[1731357713714,0.17265988,86934.0,86915.0,0.10025]
[1731357714334,0.16589194,86935.0,86917.0,0.1]
[1731357714335,0.04595119,86935.0,86917.0,0.1]
[1731357714694,0.04595119,86935.0,86919.0,0.1]
[1731357714834,0.04595119,86935.0,86919.0,0.21994075]
[1731357715316,0.04595119,86935.0,86926.0,0.005]
[1731357715499,0.17265988,86946.0,86931.0,0.03351698]
[1731357715773,0.17265988,86946.0,86934.0,0.03351698]
[1731357715957,0.17265988,86946.0,86932.0,0.1]
[1731357716173,0.0772,86967.0,86928.0,0.005]